bitfinex/quotes_ETHUSD_20251212
["timestamp","ask_amount","ask_price","bid_price","bid_amount"]
[1765557734013,0.6465,3060.1,3059.1,1.15333843]
[1765557734208,0.6465,3060.1,3059.1,5.03333843]
[1765557734519,7.18226542,3060.1,3059.1,5.03333843]
[1765557734724,6.797115,3060.0,3058.9,3.46044904]
[1765557734902,3.26805419,3060.0,3058.9,6.72959808]
[1765557735322,6.53610838,3060.0,3058.9,3.46044904]
[1765557735635,6.53610838,3060.0,3058.9,7.20999808]
[1765557735845,30.62939112,3059.8,3058.2,3.61819389]
[1765557736042,0.58047529,3059.2,3058.5,3.26956901]
[1765557736336,0.537,3059.1,3058.3,3.26972454]
[1765557736539,0.537,3059.1,3058.5,3.26951224]
[1765557736865,3.26904217,3059.0,3058.2,3.27181733]
[1765557737132,0.537,3059.1,3058.2,6.93606638]
[1765557737133,1.11747529,3059.1,3058.2,6.93606638]
[1765557737326,3.80594901,3059.1,3058.2,6.93606638]
[1765557737639,3.80594901,3059.1,3058.2,7.41906638]
[1765557737640,0.537,3059.1,3058.2,7.41906638]
[1765557737804,1.11747529,3059.1,3058.3,0.483]
[1765557737999,9.575985,3059.0,3058.2,0.39635173]
[1765557738218,9.575985,3059.0,3058.2,0.002]
[1765557738219,0.1287,3058.3,3058.2,0.002]
[1765557738417,0.6657,3058.3,3058.2,0.002]
[1765557738848,4.51596569,3058.3,3058.2,0.002]
[1765557739052,0.537,3058.3,3058.2,0.002]
[1765557739543,3.8067904,3058.3,3058.2,0.002]
[1765557739840,0.537,3058.3,3058.2,0.002]
[1765557740622,0.537,3058.6,3058.2,0.002]
[1765557741029,0.58047529,3059.2,3058.3,0.486]
[1765557741233,0.537,3059.1,3058.3,0.486]
[1765557741440,0.537,3059.1,3058.2,0.34877411]
[1765557741942,24.755729,3058.9,3058.2,0.002]
[1765557742144,0.58047529,3058.7,3058.2,0.002]
[1765557742354,0.405504,3058.9,3058.2,0.002]
[1765557742537,0.58047529,3058.7,3058.2,0.002]
[1765557742750,0.58047529,3058.5,3058.2,0.002]
[1765557742949,3.85026569,3058.3,3058.2,0.002]
[1765557743169,15.69674569,3058.3,3058.2,0.002]
[1765557743341,14.58779369,3058.3,3058.2,0.002]
[1765557743661,13.44162069,3058.3,3058.2,0.002]
[1765557743837,1.11747529,3058.3,3058.2,0.002]
[1765557744219,0.537,3058.3,3058.2,0.002]
[1765557745148,4.38726569,3058.3,3058.2,0.002]
[1765557745325,1.11747529,3058.3,3058.2,0.002]
[1765557745856,14.64226169,3058.3,3058.2,0.002]
[1765557746020,0.405504,3058.0,3057.9,0.002]
[1765557746357,13.23248512,3058.0,3057.9,0.002]
[1765557746729,11.18880412,3058.0,3057.9,0.002]
[1765557746932,23.2523573,3058.0,3057.9,0.002]
[1765557747247,21.7909893,3058.0,3057.9,0.002]
[1765557747458,24.35513562,3058.0,3057.9,0.002]
[1765557747632,24.93561091,3058.0,3057.9,0.002]
[1765557747840,36.44001291,3058.0,3057.9,0.002]
[1765557748022,28.22349191,3058.0,3057.9,0.002]
[1765557748423,28.22349191,3058.0,3057.6,0.002]
[1765557748424,0.405504,3057.8,3057.6,1e-08]
[1765557748627,12.48816529,3057.7,3057.6,1e-08]
[1765557748824,12.48816529,3057.7,3056.6,0.002]
[1765557748825,0.405504,3057.4,3056.6,0.002]
[1765557749052,3.96147723,3056.7,3056.6,0.002]
[1765557749257,4.38897723,3056.7,3056.6,0.002]
[1765557749824,28.270545,3056.4,3055.0,3.46910866]
[1765557750069,0.58047529,3055.9,3055.0,0.6818]
[1765557750269,0.537,3055.8,3055.0,0.6818]
[1765557750437,0.537,3055.8,3055.1,0.51873215]
[1765557750762,0.537,3055.8,3055.1,0.486]
[1765557750923,0.537,3055.8,3055.2,0.39550731]
[1765557751131,0.537,3055.8,3055.3,6.54600202]
[1765557751356,0.537,3055.8,3055.3,7.03200202]
[1765557751628,0.537,3055.8,3055.4,0.486]
[1765557751873,0.537,3055.8,3055.3,6.54600202]
[1765557752162,0.1095,3056.8,3055.5,0.486]
[1765557752322,0.537,3056.7,3056.1,0.1958]
[1765557752660,1.11747529,3056.7,3056.1,0.1958]
[1765557752861,0.58047529,3056.5,3055.3,7.24015295]
[1765557753167,0.58047529,3056.1,3055.3,6.54600202]
[1765557753461,4.499931,3056.0,3055.0,0.1958]
[1765557753670,0.537,3055.9,3055.2,3.2730939]
[1765557753840,0.537,3055.9,3055.2,6.54620204]
[1765557755365,0.537,3055.9,3055.1,6.54643054]
[1765557755552,0.537,3055.9,3055.1,8.08259195]
[1765557755965,0.537,3055.9,3055.2,0.486]
[1765557757469,0.537,3055.9,3055.1,1.05016141]
[1765557757655,19.686071,3055.6,3054.7,3.27362868]
[1765557757854,0.58047529,3055.5,3054.3,0.6818]
[1765557758081,8.56920012,3055.8,3055.2,3.27310175]
[1765557758082,0.58047529,3055.8,3055.2,3.27310175]
[1765557758247,0.537,3055.7,3055.2,3.27310175]
[1765557758442,0.537,3055.7,3055.2,3.27306966]
[1765557758762,0.537,3055.7,3055.2,3.27310211]
[1765557759356,0.537,3055.7,3055.1,0.1958]
[1765557759553,0.537,3055.7,3055.1,3.46899127]
[1765557759773,3.80959286,3055.7,3055.1,3.27321157]
[1765557759975,3.80957493,3055.7,3055.1,3.27321157]
[1765557760346,0.58047529,3055.6,3054.3,3.46980539]
[1765557760548,0.38095749,3055.6,3055.0,3.27330193]
[1765557760781,1.11747529,3055.7,3055.1,3.27319129]
[1765557760976,3.80960974,3055.7,3055.1,3.27319129]
[1765557761180,3.80960974,3055.7,3055.1,3.46899129]
[1765557761367,0.537,3055.7,3055.1,3.46899129]
[1765557761582,0.537,3055.7,3055.1,7.57510569]
[1765557761876,3.27205029,3056.2,3055.1,7.08910569]
[1765557761877,0.58047529,3056.2,3055.1,7.08910569]
[1765557762082,0.537,3056.1,3055.1,7.57510569]
[1765557762278,0.537,3056.1,3055.2,0.486]
[1765557762481,1.11747529,3056.1,3055.2,0.486]
[1765557762683,0.537,3056.1,3055.2,0.486]
[1765557763188,0.537,3056.1,3055.1,7.08910569]
[1765557763775,3.2722513,3056.0,3055.1,3.81589042]
[1765557764093,13.449249,3055.8,3054.8,0.486]
[1765557764256,10.487234,3055.8,3054.8,0.486]
[1765557764658,16.794891,3055.6,3054.7,3.27360713]
[1765557764889,15.077897,3055.6,3054.4,0.486]
[1765557765103,5.223564,3055.6,3054.8,3.27347149]
[1765557765278,5.223564,3055.6,3053.5,4.39435828]
[1765557765279,12.430973,3055.3,3053.9,0.6818]
[1765557765491,8.13120012,3055.4,3054.0,0.486]
[1765557765492,8.436918,3055.1,3054.0,0.486]
[1765557765703,8.436918,3055.1,3054.1,3.2741898]
[1765557765874,6.54664484,3055.0,3054.1,3.2741898]
[1765557766078,6.54664484,3055.0,3053.9,0.1958]
[1765557766079,9.288444,3054.8,3053.9,3.47026649]
[1765557766278,2.470798,3054.6,3053.8,0.002]
[1765557766587,0.537,3054.5,3053.8,0.002]
[1765557766975,0.537,3054.5,3053.8,3.27652033]
[1765557767183,0.537,3054.5,3053.8,0.002]
[1765557767871,0.537,3054.5,3053.9,0.486]
[1765557768073,0.537,3054.5,3053.9,1.18972174]
[1765557769110,0.537,3054.5,3053.8,0.002]
[1765557769111,8.13120012,3054.0,3053.8,0.002]
[1765557769314,8.13120012,3054.0,3052.0,7.03898658]
[1765557769315,0.0999,3053.3,3052.0,7.03898658]
[1765557769469,0.537,3053.2,3052.0,7.03898658]
[1765557770096,0.537,3053.2,3052.1,0.486]
[1765557770294,0.537,3053.2,3052.2,1.03155266]
[1765557770791,0.537,3053.2,3052.0,6.55298658]
[1765557770792,3.81231014,3053.2,3052.0,6.55298658]
[1765557770992,0.537,3053.2,3052.0,6.55298658]
[1765557771306,0.537,3053.2,3052.1,0.4777]
[1765557771610,0.537,3053.2,3051.8,0.1958]
[1765557771611,9.119746,3052.8,3052.0,3.27653997]
[1765557771806,3.71335947,3053.1,3052.1,0.327954]
[1765557771985,0.537,3053.2,3052.1,0.4777]
[1765557771986,3.81227475,3053.2,3052.1,0.4777]
[1765557772171,8.1708048,3052.8,3051.9,0.003]
[1765557772373,0.98597929,3053.0,3051.9,0.003]
[1765557772374,0.58047529,3052.1,3051.9,0.003]
[1765557772690,0.58047529,3052.1,3051.1,0.01084771]
[1765557772691,0.58047529,3051.8,3051.1,0.01084771]
[1765557772895,8.1708048,3052.3,3051.1,0.67704771]
[1765557773068,10.266393,3052.1,3051.1,0.19934771]
[1765557773269,0.58047529,3051.9,3051.1,0.01084771]
[1765557773473,0.58047529,3051.7,3051.1,3.28829854]
[1765557773779,0.58047529,3051.7,3051.1,7.56083486]
[1765557773780,0.09161854,3051.3,3051.1,7.56083486]
[1765557773977,0.09161854,3051.3,3051.2,0.4777]
[1765557774206,0.09161854,3052.1,3051.2,0.4777]
[1765557774368,0.09161854,3052.1,3051.1,6.75430501]
[1765557774568,0.09161854,3052.4,3051.2,0.4777]
[1765557774770,0.438,3053.9,3052.3,0.1885]
[1765557774982,3.911062,3053.7,3052.3,0.1885]
[1765557775187,2.308968,3053.7,3052.4,0.4777]
[1765557775504,0.538,3053.8,3052.4,0.4777]
[1765557775712,0.0999,3053.9,3052.4,0.4777]
[1765557776202,0.0999,3053.9,3052.6,0.4777]
[1765557776388,1.60504577,3053.9,3052.7,0.98057098]
[1765557776595,0.538,3054.0,3052.7,0.98057098]
[1765557776803,0.538,3054.0,3052.8,0.4777]
[1765557777472,0.438,3055.5,3053.9,0.1885]
[1765557777672,0.0999,3055.7,3053.9,0.1885]
[1765557777912,0.538,3055.9,3054.1,0.405504]
[1765557778069,0.538,3055.9,3054.3,0.98597929]
[1765557778272,0.538,3055.9,3054.5,0.405504]
[1765557778474,0.538,3055.9,3054.5,0.98597929]
[1765557778702,0.538,3055.9,3054.6,0.4777]
[1765557779472,0.58047529,3055.8,3054.6,0.4777]
[1765557779712,7.08272633,3055.9,3054.6,0.4777]
[1765557779713,0.538,3055.9,3054.6,0.4777]
[1765557779873,0.538,3055.9,3054.7,1.20858844]
[1765557780073,0.538,3055.9,3054.8,9.989239]
[1765557780291,0.538,3055.9,3054.8,3.93973672]
[1765557780501,7.08278294,3055.9,3054.8,3.46203672]
[1765557780700,0.538,3055.9,3054.9,0.4777]
[1765557781577,0.538,3055.9,3054.4,0.4777]
[1765557781578,23.377604,3055.8,3054.4,0.4777]
[1765557781809,23.377604,3055.8,3053.9,0.1885]
[1765557781810,28.270545,3055.4,3053.9,3.46299959]
[1765557782101,28.270545,3055.4,3053.3,6.7387631]
[1765557782102,0.58047529,3054.8,3053.3,6.7387631]
[1765557782302,0.58047529,3054.4,3053.3,6.7387631]
[1765557782504,2.183161,3054.5,3053.4,0.4777]
[1765557782709,0.58047529,3054.6,3053.4,0.4777]
[1765557782881,0.58047529,3054.6,3052.7,4.79331993]
[1765557782882,0.0999,3053.5,3052.3,0.1885]
[1765557783215,0.0999,3053.5,3051.8,3.2767547]
[1765557783216,0.58047529,3053.2,3051.8,3.2767547]
[1765557783382,0.55540721,3053.1,3051.8,3.2767547]
[1765557783578,0.438,3053.3,3051.8,0.37544547]
[1765557784074,3.27578864,3052.7,3051.7,3.27684257]
[1765557784301,0.537,3052.6,3051.7,3.27684257]
[1765557784509,0.537,3052.6,3051.8,0.4777]
[1765557786117,0.537,3052.6,3051.9,6.55329466]
[1765557786610,0.537,3052.6,3052.0,0.4777]
[1765557786793,0.09161854,3053.2,3052.0,1.0297855]
[1765557786995,0.62861854,3053.2,3052.0,1.0297855]
[1765557787196,0.62861854,3053.2,3052.0,0.5520855]
[1765557787603,19.04409547,3053.1,3051.9,7.03099466]
[1765557787805,5.438495,3053.1,3052.0,0.4777]
[1765557788005,0.58047529,3053.0,3051.9,3.27664733]
[1765557788178,3.27557404,3052.9,3051.7,6.55372414]
[1765557788698,2.645982,3052.8,3051.7,6.55372414]
[1765557788905,2.645982,3052.8,3051.1,3.28830255]
[1765557788906,0.58047529,3052.5,3051.1,0.01084771]
[1765557789093,0.58047529,3052.5,3051.1,3.2883432]
[1765557789094,5.522024,3052.3,3051.1,3.2883432]
[1765557789474,0.537,3052.2,3051.1,0.01084771]
[1765557789584,0.58047529,3052.0,3051.1,0.01084771]
[1765557789785,0.83368315,3052.0,3051.1,0.01084771]
[1765557790119,0.537,3052.2,3051.2,7.0324981]
[1765557790419,0.58047529,3052.1,3051.2,7.0324981]
[1765557790584,0.58047529,3052.1,3051.1,0.01084771]
[1765557790783,3.77285096,3052.8,3051.1,0.01084771]
[1765557790784,0.05,3052.9,3052.0,0.1885]
[1765557791019,0.1191,3054.8,3052.0,0.1885]
[1765557791020,3.877315,3054.3,3052.7,0.1885]
[1765557791183,12.033306,3054.1,3052.7,0.1885]
[1765557791382,1.0425285,3054.2,3052.8,0.4777]
[1765557791609,4.00199339,3054.5,3052.8,0.4777]
[1765557791811,0.171,3054.5,3052.9,0.405504]
[1765557792015,3.27280494,3055.5,3054.4,0.1885]
[1765557792198,0.0999,3055.7,3054.5,3.27385824]
[1765557792199,0.538,3055.3,3054.5,3.27385824]
[1765557792401,0.538,3055.3,3053.5,0.81522964]
[1765557792580,0.538,3055.3,3052.6,3.27582807]
[1765557792581,28.270545,3054.8,3052.9,6.55114808]
[1765557792781,6.845773,3054.4,3053.0,0.4777]
[1765557793018,11.370309,3054.2,3053.0,0.4777]
[1765557793191,3.8041,3054.2,3053.0,0.4777]
[1765557793606,0.538,3054.3,3053.0,0.4777]
[1765557793995,11.7104,3054.2,3053.0,0.4777]
[1765557794198,3.27428702,3054.1,3053.0,3.75314941]
[1765557794399,3.27428702,3054.1,3053.0,4.12846435]
[1765557794598,0.5571,3054.8,3053.0,4.12846435]
[1765557794599,0.438,3055.4,3053.1,0.4777]
[1765557794804,3.27246463,3055.9,3053.1,0.4777]
[1765557794805,3.27300101,3055.3,3053.2,0.405504]
[1765557795006,2.514861,3055.2,3053.3,0.4777]
[1765557795310,3.149766,3055.1,3053.3,0.4777]
[1765557795818,2.514861,3055.1,3053.3,0.4777]
[1765557795989,0.95989402,3055.2,3053.3,0.4777]
[1765557796194,0.538,3055.4,3053.6,0.405504]
[1765557796423,0.538,3055.4,3053.8,0.405504]
[1765557796424,3.8109462,3055.4,3053.8,0.405504]
[1765557796715,7.0838924,3055.4,3053.7,0.537]
[1765557796924,7.0838924,3055.4,3053.8,0.4777]
[1765557797133,0.538,3055.4,3053.8,0.4777]
[1765557797334,0.538,3055.4,3053.9,0.405504]
[1765557797535,0.438,3056.7,3055.3,0.191]
[1765557797536,3.2718313,3056.4,3055.3,0.191]
[1765557797746,0.32718313,3056.3,3055.3,0.191]
[1765557797903,0.32718313,3056.3,3055.4,0.4756]
[1765557798101,0.32718313,3056.3,3055.5,6.54557354]
[1765557798335,0.537,3056.4,3055.6,0.4756]
[1765557798830,3.27139492,3056.8,3055.6,0.4756]
[1765557799008,6.54278984,3056.8,3055.6,0.4756]
[1765557799208,6.54278984,3056.8,3055.5,3.27278677]
[1765557799412,5.804127,3056.7,3055.4,3.27286279]
[1765557799610,16.466164,3056.5,3055.3,0.191]
[1765557799815,1.27849168,3056.6,3054.9,0.4756]
[1765557799816,9.673817,3056.3,3054.9,0.4756]
[1765557800003,3.492297,3056.1,3054.9,0.4756]
[1765557800208,0.58047529,3055.9,3054.9,3.74901579]
[1765557800616,3.37211966,3056.1,3054.9,6.54684536]
[1765557800835,3.27221966,3056.1,3055.0,0.4559]
[1765557801236,6.54443932,3056.1,3055.0,0.4559]
[1765557801440,0.537,3056.2,3055.0,0.4559]
[1765557801751,0.537,3056.2,3054.8,0.191]
[1765557801752,10.35315084,3056.2,3054.8,0.191]
[1765557802048,0.58047529,3056.1,3054.8,0.191]
[1765557802258,0.58047529,3055.9,3054.8,3.46450574]
[1765557802434,0.58047529,3055.9,3054.8,0.191]
[1765557802755,2.1661,3055.8,3054.4,0.1914]
[1765557802922,11.561669,3055.6,3054.4,0.1914]
[1765557803126,13.204335,3055.4,3054.0,0.191]
[1765557803306,9.4765,3055.2,3054.0,3.46539372]
[1765557803615,0.537,3055.3,3054.8,3.27350196]
[1765557803815,0.537,3055.3,3054.8,0.1914]
[1765557804541,0.537,3055.3,3054.8,3.92083261]
[1765557804758,3.81000253,3055.3,3054.8,0.1914]
[1765557804918,3.81000253,3055.3,3054.3,0.4559]
[1765557805117,0.537,3055.3,3054.3,0.4559]
[1765557805857,7.08317176,3055.3,3054.3,0.4559]
[1765557806156,3.81008588,3055.3,3054.3,0.4559]
[1765557806359,0.537,3055.3,3054.4,6.54793084]
[1765557806859,0.537,3055.3,3054.5,0.4559]
[1765557807071,0.5379,3056.3,3055.2,0.1914]
[1765557807072,0.0999,3056.3,3055.2,0.1914]
[1765557807356,7.08090142,3056.3,3055.2,0.1914]
[1765557807557,4.51702025,3056.3,3055.3,0.4559]
[1765557807861,0.537,3056.3,3055.3,0.4559]
[1765557808168,3.27117382,3057.1,3056.2,0.1914]
[1765557808323,3.27032507,3057.8,3056.3,9.81579033]
[1765557808663,0.001,3057.9,3057.0,0.1914]
[1765557808830,0.001,3057.9,3057.1,0.4559]
[1765557809032,0.001,3057.9,3057.2,0.405504]
[1765557809233,0.001,3057.9,3057.4,0.405504]
[1765557809449,0.001,3057.9,3057.1,0.4559]
[1765557809649,0.001,3057.9,3056.3,16.35965055]
[1765557809650,0.1201,3057.9,3056.4,1.03637529]
[1765557809875,3.02730929,3057.8,3056.1,0.4559]
[1765557810163,2.292,3057.5,3056.2,3.46337266]
[1765557810338,6.54150584,3057.4,3056.3,0.4559]
[1765557810659,3.27075292,3057.4,3056.3,0.4559]
[1765557810845,6.54150584,3057.4,3056.2,0.1914]
[1765557811323,3.80775292,3057.4,3056.2,7.19137434]
[1765557811524,0.001,3057.9,3056.3,0.4559]
[1765557811723,0.001,3057.9,3056.4,0.405504]
[1765557812154,0.001,3057.9,3056.5,0.4559]
[1765557812362,0.001,3057.9,3056.7,9.81450582]
[1765557812556,0.001,3057.9,3056.7,6.54300388]
[1765557812730,0.001,3057.9,3056.8,0.4559]
[1765557814372,0.001,3057.9,3056.9,3.2712879]
[1765557814527,0.001,3057.9,3057.8,0.1914]
[1765557814962,0.001,3057.9,3057.3,0.4559]
[1765557815137,0.001,3057.9,3057.8,0.1914]
[1765557815343,0.001,3057.9,3057.8,0.6473]
[1765557816383,0.001,3057.9,3057.8,3.91762507]
[1765557816659,0.001,3057.9,3057.8,5.0419361]
[1765557817048,0.001,3057.9,3057.8,5.62241139]
[1765557817974,0.001,3057.9,3057.8,14.38177758]
[1765557818737,0.001,3058.6,3058.5,0.98597929]
[1765557819064,0.001,3058.6,3058.5,1.61459783]
[1765557819261,0.001,3058.6,3058.5,3.10789423]
[1765557819432,0.001,3058.6,3058.5,2.4358004]
[1765557819638,0.001,3058.6,3058.5,1.97887929]
[1765557820140,0.001,3058.6,3058.5,2.07049783]
[1765557820456,0.001,3058.6,3058.5,5.34007441]
[1765557821048,3.26734289,3060.6,3058.5,18.41838073]
[1765557821372,0.001,3060.7,3058.5,18.41838073]
[1765557821373,3.26745524,3060.5,3058.8,0.405504]
[1765557821535,0.439,3060.4,3058.6,0.4559]
[1765557822469,6.53530698,3060.3,3058.7,6.5387256]
[1765557822680,2.1661,3060.1,3058.7,6.5387256]
[1765557823169,1.01847529,3060.2,3058.7,6.5387256]
[1765557823170,9.592482,3059.9,3058.7,6.5387256]
[1765557823392,2.320463,3059.9,3058.7,6.5387256]
[1765557823553,0.0999,3060.0,3058.8,0.65387256]
[1765557824453,0.5379,3060.0,3058.8,0.65387256]
[1765557824652,3.26808065,3059.9,3058.9,3.26914904]
[1765557824853,6.5361613,3059.9,3058.9,3.26914904]
[1765557825053,6.9741613,3059.9,3058.9,3.26914904]
[1765557825253,4.41348678,3059.9,3058.9,6.53829808]
[1765557825869,7.68156743,3059.9,3058.8,3.26925218]
[1765557826362,4.41348678,3059.9,3058.8,6.53850809]
[1765557826585,7.68156743,3059.9,3058.8,3.26925218]
[1765557826795,0.1191,3058.9,3057.9,0.4559]
[1765557827196,0.1191,3058.9,3058.4,3.26960723]
[1765557827366,0.1191,3058.9,3058.5,3.26955304]
[1765557827568,0.1191,3058.9,3057.9,0.4559]
[1765557827777,0.1191,3058.9,3058.0,0.4559]
[1765557827972,1.89462203,3059.8,3058.0,0.4559]
[1765557827973,0.1191,3059.2,3058.4,3.26964712]
[1765557828161,1.35862203,3059.8,3058.0,4.11770365]
[1765557828162,0.438,3059.6,3058.3,0.4559]
[1765557828368,0.438,3059.6,3058.6,6.53891081]
[1765557828865,0.58047529,3059.4,3058.2,3.26988829]
[1765557829065,0.71174911,3059.3,3058.0,0.39174534]
[1765557829302,2.979389,3059.2,3058.1,3.2699045]
[1765557829514,0.438,3059.2,3058.2,3.2698882]
[1765557829797,0.438,3059.1,3057.8,3.4617122]
[1765557829963,0.438,3059.1,3056.4,3.27182305]
[1765557829964,0.1191,3057.9,3056.4,3.27182305]
[1765557830166,0.1191,3057.9,3056.4,10.69638146]
[1765557830167,0.6551,3057.9,3056.4,10.69638146]
[1765557830402,0.1191,3058.2,3056.5,1.10219245]
[1765557830595,0.536,3058.7,3056.5,1.10219245]
[1765557830805,2.416953,3058.3,3056.7,6.54300388]
[1765557831013,1.333632,3058.2,3056.8,1.03035556]
[1765557831180,0.438,3058.2,3056.9,0.489]
[1765557831696,34.80713354,3059.7,3058.1,0.1839]
[1765557832015,0.58047529,3059.4,3057.4,0.6729]
[1765557832209,0.58047529,3059.3,3057.4,0.1839]
[1765557832406,0.58047529,3059.0,3057.5,0.489]
[1765557832611,0.536,3059.0,3057.5,0.489]
[1765557832796,0.1191,3058.9,3057.5,0.489]
[1765557833110,0.58047529,3058.7,3057.6,3.27053898]
[1765557833302,0.1191,3058.9,3057.6,10.20596084]
[1765557833494,0.1191,3058.9,3057.7,0.489]
[1765557833689,0.438,3058.8,3057.6,6.93542186]
[1765557834212,0.1191,3058.9,3057.7,1.06947529]
[1765557834408,0.1191,3058.9,3057.8,1.61654361]
[1765557834908,0.58047529,3059.2,3058.0,6.54022236]
[1765557835101,0.58047529,3059.2,3058.0,9.81033354]
[1765557835304,0.58047529,3059.3,3058.0,9.81033354]
[1765557835694,0.58047529,3059.3,3058.0,6.54022236]
[1765557836012,0.438,3059.2,3058.0,6.54022236]
[1765557836215,7.067998,3058.9,3057.4,0.6729]
[1765557836389,2.261748,3058.9,3057.8,3.27030362]
[1765557836594,0.5571,3058.8,3057.8,3.27030362]
[1765557836802,0.5571,3058.8,3057.9,3.27017012]
[1765557837002,3.82640831,3058.8,3057.5,6.5412919]
[1765557837205,0.1191,3058.8,3057.6,0.72141919]
[1765557837408,0.1191,3058.8,3057.6,1.21041919]
[1765557837711,0.58047529,3059.2,3057.7,0.489]
[1765557837912,0.438,3059.3,3057.8,0.405504]
[1765557838118,0.438,3059.3,3057.9,0.489]
[1765557838526,1.01847529,3059.3,3057.9,0.489]
[1765557838822,0.58047529,3059.3,3058.0,0.405504]
[1765557839124,0.536,3059.4,3058.2,0.98597929]
[1765557839322,0.0999,3060.0,3058.4,0.405504]
[1765557839716,0.0999,3060.0,3058.6,0.405504]
[1765557840114,0.438,3059.9,3058.3,1.45549963]
[1765557840316,0.0999,3060.0,3058.7,0.489]
[1765557840707,0.68037529,3060.0,3058.7,0.489]
[1765557840931,0.0999,3060.0,3058.7,0.489]
[1765557841227,0.001,3060.2,3059.9,0.1839]
[1765557841428,0.001,3060.2,3059.2,0.98597929]
[1765557841599,0.001,3060.2,3060.1,0.1839]
[1765557841943,0.001,3060.2,3060.1,0.589404]
[1765557842229,0.001,3060.2,3059.6,0.6615]
[1765557842598,0.001,3060.2,3059.7,0.4639]
[1765557843232,0.001,3060.2,3059.8,6.53637492]
[1765557843431,0.001,3060.2,3059.9,0.98597929]
[1765557843730,0.0999,3061.6,3059.9,1.44987929]
[1765557843936,0.0999,3061.6,3060.5,0.98597929]
[1765557844095,3.26673367,3062.1,3060.3,0.405504]
[1765557844096,1.12037529,3061.8,3060.3,0.405504]
[1765557844301,0.5399,3061.8,3060.3,0.405504]
[1765557844498,0.1009,3061.8,3060.4,0.4639]
[1765557845112,0.1009,3061.8,3060.6,9.8019996]
[1765557845322,0.001,3062.1,3060.7,1.04437529]
[1765557845501,3.26674699,3062.1,3060.7,1.04437529]
[1765557845698,0.001,3062.1,3060.9,0.405504]
[1765557845923,0.001,3062.1,3061.1,0.98597929]
[1765557846127,0.001,3062.1,3061.2,1.02813455]
[1765557846301,0.001,3062.1,3061.2,1.49203455]
[1765557846699,0.001,3062.1,3061.3,0.4639]
[1765557846929,3.26674439,3062.1,3060.7,0.4639]
[1765557847133,3.26674439,3062.1,3060.9,9.80103891]
[1765557847134,0.58147529,3062.1,3060.9,9.80103891]
[1765557847318,0.001,3062.1,3061.0,1.60112958]
[1765557847519,0.001,3062.1,3061.1,0.405504]
[1765557847857,0.001,3062.1,3061.1,1.067004]
[1765557848037,0.001,3062.1,3061.4,8.75936619]
[1765557848537,3.26499119,3062.8,3061.5,0.4639]
[1765557848538,0.58047529,3062.7,3061.5,0.4639]
[1765557848739,0.58047529,3062.5,3061.1,0.1976]
[1765557848914,0.439,3062.6,3061.1,0.1976]
[1765557849108,3.26541274,3062.4,3061.2,6.5333856]
[1765557849597,3.70441274,3062.4,3061.2,6.5333856]
[1765557849843,0.58047529,3062.3,3061.2,6.5333856]
[1765557850207,0.439,3062.2,3061.0,1.02065429]
[1765557850420,0.439,3062.2,3060.4,13.1197975]
[1765557850421,0.11,3061.1,3060.5,3.26740665]
[1765557850643,0.11,3061.1,3059.8,0.71978749]
[1765557850644,0.1191,3060.6,3059.8,0.71978749]
[1765557850937,0.439,3061.0,3059.6,0.1976]
[1765557851137,0.1191,3060.9,3059.9,6.5361613]
[1765557851307,6.5342394,3060.8,3059.7,3.26827825]
[1765557851514,0.58047529,3060.7,3059.7,6.53657252]
[1765557852065,1.01947529,3060.8,3059.7,6.53657252]
[1765557852212,0.1191,3060.9,3059.8,0.98049191]
[1765557852409,0.58047529,3060.8,3059.8,0.98049191]
[1765557852624,1.01947529,3060.8,3059.7,3.26827825]
[1765557852817,1.01947529,3060.8,3058.7,0.9999]
[1765557852818,0.0999,3059.8,3058.7,0.9999]
[1765557853142,0.0999,3059.8,3058.7,0.4639]
[1765557853358,1.01947529,3059.7,3058.8,3.26925591]
[1765557853645,1.01947529,3059.7,3058.8,6.53851182]
[1765557853646,0.58047529,3059.7,3058.8,6.53851182]
[1765557853953,0.58047529,3059.7,3058.9,0.65385118]
[1765557854115,0.439,3059.6,3058.8,3.26925591]
[1765557854513,0.439,3059.6,3058.7,3.26936215]
[1765557855325,0.439,3059.6,3058.3,0.4639]
[1765557855526,0.58047529,3059.6,3058.3,0.4639]
[1765557855827,0.0999,3059.8,3058.3,0.4639]
[1765557855828,0.68037529,3059.8,3058.4,0.4639]
[1765557856006,3.94856592,3059.8,3058.4,0.4639]
[1765557856212,0.0999,3059.8,3058.4,0.4639]
[1765557856413,0.68037529,3059.8,3058.4,0.4639]
[1765557856910,4.38757409,3059.8,3058.4,0.4639]
[1765557857128,0.439,3059.7,3058.3,0.58047529]
[1765557857333,3.26850792,3059.5,3058.4,6.53936698]
[1765557857533,1.01947529,3059.7,3058.4,6.53936698]
[1765557857733,0.58047529,3059.6,3058.4,6.53936698]
[1765557857954,0.58047529,3059.6,3058.4,7.00326698]
[1765557858163,0.58047529,3059.6,3058.5,0.7003267]
[1765557858359,0.58047529,3059.6,3058.5,1.1642267]
[1765557859141,0.439,3059.5,3058.5,0.7003267]
[1765557859363,3.26861476,3059.4,3058.1,7.12048379]
[1765557859567,3.7075141,3059.5,3058.1,10.39048804]
[1765557859768,3.7075141,3059.5,3058.1,10.85438804]
[1765557860065,3.7075141,3059.5,3058.2,0.4639]
[1765557860272,3.2685141,3059.5,3058.2,0.4639]
[1765557860455,3.2685141,3059.5,3058.3,1.0854388]
[1765557860662,3.7075141,3059.5,3058.3,1.0854388]
[1765557860842,0.0999,3059.8,3058.4,0.4849]
[1765557861038,0.58047529,3059.6,3058.4,0.4849]
[1765557861570,3.807102,3059.8,3058.5,9.80872974]
[1765557861741,3.807102,3059.8,3058.5,6.53915316]
[1765557861742,0.58047529,3059.7,3058.5,6.53915316]